bitfinex/quotes_SOLUSD_20260108
["timestamp","ask_amount","ask_price","bid_price","bid_amount"]
[1767839996369,0.68441788,137.1,137.05,4.07496779]
[1767839996562,0.68441788,137.11,137.07,3.41479177]
[1767839996875,4.64781419,137.1,137.07,3.41479177]
[1767839997078,0.68441788,137.11,137.07,3.41479177]
[1767839997954,0.68441788,137.11,137.08,3.41479177]
[1767839998160,14.00441788,137.12,137.09,3.41479177]
[1767839998357,0.68441788,137.12,137.09,3.41479177]
[1767839998576,0.68441788,137.12,137.07,7.2950158]
[1767839998757,0.68441788,137.12,137.07,10.70980757]
[1767839999561,0.68441788,137.12,137.08,3.41479177]
[1767840000081,0.68441788,137.12,137.08,10.70971887]
[1767840000281,0.68441788,137.12,137.08,7.2949271]
[1767840000866,0.68441788,137.12,137.08,10.70971887]
[1767840001562,0.68441788,137.12,137.09,3.41479177]
[1767840001786,0.68441788,137.12,137.08,7.2949271]
[1767840001787,0.2,137.14,137.11,0.63448231]
[1767840001962,0.2,137.15,137.12,3.41479177]
[1767840002278,0.2,137.16,137.13,3.41479177]
[1767840002781,0.2,137.16,137.12,3.41479177]
[1767840002990,0.2,137.16,137.11,3.41479177]
[1767840003187,0.92481647,137.16,137.11,3.41479177]
[1767840003367,0.92481647,137.16,137.08,7.2949271]
[1767840003368,0.72481647,137.13,137.08,7.2949271]
[1767840003562,3.41479177,137.14,137.09,0.71062114]
[1767840003761,10.70669524,137.14,137.09,8.00489477]
[1767840004063,7.29190347,137.14,137.09,8.00489477]
[1767840004384,13.32,137.15,137.12,0.71062114]
[1767840004765,0.2,137.16,137.13,4.12541291]
[1767840005165,0.2,137.16,137.13,0.71062114]
[1767840006289,0.2,137.16,137.13,11.41765002]
[1767840007472,0.2,137.16,137.13,0.71062114]
[1767840007670,0.2,137.16,137.13,8.00290146]
[1767840009284,0.2,137.16,137.14,0.71062114]
[1767840010580,0.2,137.16,137.12,4.12541291]
[1767840010971,0.2,137.16,137.13,0.71062114]
[1767840011169,0.2,137.16,137.13,4.12541291]
[1767840011367,0.2,137.16,137.13,0.71062114]
[1767840012685,0.72481647,137.15,137.11,0.71062114]
[1767840012875,0.72481647,137.15,137.1,10.70841384]
[1767840013692,0.72481647,137.14,137.09,3.41479177]
[1767840013876,0.62481647,137.1,137.05,7.29639315]
[1767840014071,10.70906196,137.1,137.05,7.29639315]
[1767840014294,3.41479177,137.09,137.04,7.29695613]
[1767840016389,7.39327019,137.1,137.05,0.71062114]
[1767840016575,3.41479177,137.1,137.05,0.71062114]
[1767840016772,24.55315694,137.11,137.06,0.71062114]
[1767840016973,3.41479177,137.1,137.06,0.71062114]
[1767840017381,24.55315694,137.11,137.06,0.71062114]
[1767840017583,13.32,137.12,137.08,0.71062114]
[1767840017786,24.02736128,137.13,137.08,0.71062114]
[1767840017988,20.61256951,137.13,137.08,0.71062114]
[1767840018188,24.02736128,137.13,137.08,0.71062114]
[1767840018795,24.02736128,137.13,137.1,0.71062114]
[1767840018796,13.32,137.13,137.1,0.71062114]
[1767840019097,24.7505197,137.16,137.11,0.71062114]
[1767840019480,21.33572793,137.16,137.11,0.71062114]
[1767840019680,10.70631867,137.15,137.11,0.71062114]
[1767840022601,7.2915269,137.15,137.11,0.71062114]
[1767840022777,24.75058441,137.16,137.11,0.71062114]
[1767840023295,21.33579264,137.16,137.11,0.71062114]
[1767840023678,24.75058441,137.16,137.11,0.71062114]
[1767840024107,3.41479177,137.15,137.11,0.71062114]
[1767840024401,11.43058441,137.16,137.12,0.71062114]
[1767840024587,24.75058441,137.16,137.12,0.71062114]
[1767840024997,11.43058441,137.16,137.12,0.71062114]
[1767840025298,21.33579264,137.16,137.12,0.71062114]
[1767840026488,24.75058441,137.16,137.12,0.71062114]
[1767840026889,3.93535007,137.14,137.1,0.71062114]
[1767840028401,7.29183636,137.14,137.1,0.71062114]
[1767840029682,10.80562813,137.14,137.1,0.71062114]
[1767840030705,9.57189317,137.14,137.1,0.71062114]
[1767840031200,7.81303349,137.13,137.08,10.1865156]
[1767840031503,21.13303349,137.13,137.08,10.1865156]
[1767840031803,20.61247519,137.13,137.09,0.71062114]
[1767840031985,0.5205583,137.12,137.07,10.14188341]
[1767840032186,0.5205583,137.12,137.07,9.47638484]
[1767840033002,0.5205583,137.12,137.08,2.18105681]
[1767840034398,0.5205583,137.12,137.08,9.47592905]
[1767840034715,0.5205583,137.12,137.09,2.18105681]
[1767840036490,0.5205583,137.12,137.09,9.47525125]
[1767840037196,0.52481647,137.14,137.1,2.18105681]
[1767840038397,20.61151968,137.15,137.11,0.66549857]
[1767840039008,22.79257649,137.15,137.11,0.66549857]
[1767840039207,20.61151968,137.15,137.12,0.66549857]
[1767840040712,13.32,137.15,137.12,0.66549857]
[1767840041794,13.32,137.15,137.13,0.66549857]
[1767840044112,0.2,137.16,137.13,0.66549857]
[1767840044412,4.60240168,137.15,137.13,0.66549857]
[1767840044615,2.38105681,137.16,137.13,0.66549857]
[1767840044812,4.60239656,137.15,137.13,0.66549857]
[1767840045112,2.38105681,137.16,137.13,0.66549857]
[1767840045314,4.6025908,137.15,137.13,0.66549857]
[1767840045518,2.38105681,137.16,137.13,0.66549857]
[1767840045720,0.2,137.16,137.13,0.66549857]
[1767840048708,0.51638488,137.15,137.12,9.47387656]
[1767840049304,0.2,137.18,137.16,0.66549857]
[1767840049512,0.36202751,137.18,137.13,25.52315192]
[1767840049723,0.51756106,137.17,137.13,9.47333292]
[1767840050996,0.51756106,137.17,137.14,2.18105681]
[1767840051912,0.51756106,137.17,137.14,9.47275399]
[1767840052117,0.2,137.18,137.15,2.18105681]
[1767840052725,0.2,137.18,137.16,2.18105681]
[1767840053923,0.2,137.18,137.17,0.66549857]
[1767840054125,0.2,137.18,137.17,0.60549858]
[1767840054625,13.32,137.2,137.17,0.60549858]
[1767840055523,0.2,137.21,137.17,2.18105681]
[1767840055724,0.2,137.21,137.19,2.18105681]
[1767840056020,0.2,137.21,137.19,2.84655538]
[1767840056223,0.2,137.21,137.19,0.66549857]
[1767840057026,0.2,137.21,137.17,10.13655481]
[1767840057230,9.95464859,137.21,137.17,0.66549857]
[1767840057413,23.27464859,137.21,137.17,0.66549857]
[1767840057805,0.65281987,137.2,137.15,2.18105681]
[1767840058712,0.65281987,137.2,137.18,2.18105681]
[1767840058912,0.2,137.21,137.18,2.18105681]
[1767840059229,0.48165366,137.21,137.17,26.1812739]
[1767840059433,0.48165366,137.21,137.17,7.95571438]
[1767840059607,0.48165366,137.21,137.18,2.18105681]
[1767840059812,0.2,137.21,137.19,0.66549857]
[1767840061714,0.2,137.21,137.2,0.66549857]
[1767840061916,0.2,137.21,137.2,0.60549858]
[1767840064634,10.13186137,137.26,137.22,0.69849]
[1767840064830,7.95080456,137.26,137.22,0.69849]
[1767840066231,7.28554075,137.26,137.23,0.69849]
[1767840067939,13.3,137.27,137.24,0.69849]
[1767840068233,8.14977421,137.28,137.24,2.18105681]
[1767840068413,0.66526381,137.27,137.23,0.69849]
[1767840068609,0.66526381,137.26,137.22,7.98582364]
[1767840068831,2.84632062,137.26,137.2,0.69849]
[1767840069030,0.66526381,137.26,137.21,2.87954681]
[1767840069228,2.84632062,137.26,137.21,2.87954681]
[1767840069633,2.18105681,137.25,137.21,0.69849]
[1767840069846,7.28599975,137.25,137.21,0.69849]
[1767840070838,2.84632062,137.24,137.19,10.16848321]
[1767840071144,0.66526381,137.21,137.17,7.98850152]
[1767840071729,0.66526381,137.21,137.17,10.16955833]
[1767840073129,9.46871935,137.22,137.18,0.69849]
[1767840073321,2.84632062,137.2,137.15,0.69849]
[1767840073520,2.84632062,137.2,137.15,7.98947364]
[1767840074144,2.84632062,137.2,137.15,10.17053045]
[1767840074511,2.84632062,137.2,137.15,7.98947364]
[1767840074714,2.84632062,137.2,137.15,10.17053045]
[1767840074912,10.13502856,137.2,137.15,7.98947364]
[1767840076041,2.84632062,137.2,137.15,10.17053045]
[1767840076228,0.66526381,137.2,137.15,10.17053045]
[1767840076740,0.66526381,137.2,137.16,0.69849]
[1767840077037,20.58832314,137.21,137.17,0.69849]
[1767840077432,21.25358695,137.21,137.17,0.69849]
[1767840077631,23.43464376,137.21,137.17,0.69849]
[1767840077830,0.66526381,137.2,137.15,10.17053045]
[1767840078036,0.66526381,137.2,137.16,0.69849]
[1767840078242,2.84632062,137.2,137.16,0.69849]
[1767840078942,10.13503812,137.2,137.16,0.69849]
[1767840080739,0.66526381,137.19,137.15,7.29098364]
[1767840080938,0.66526381,137.18,137.14,7.99007153]
[1767840082022,2.84632062,137.17,137.12,0.69849]
[1767840082242,2.84632062,137.17,137.12,7.99104356]
[1767840083544,2.18105681,137.16,137.12,7.99104356]
[1767840083740,2.84632062,137.17,137.12,7.99104356]
[1767840083949,0.66526381,137.17,137.13,0.69849]
[1767840086150,7.95563046,137.17,137.13,0.69849]
[1767840086853,7.29036665,137.17,137.13,0.69849]
[1767840087042,7.29036665,137.17,137.14,0.69849]
[1767840087851,23.43617985,137.18,137.14,0.69849]
[1767840088046,0.66526381,137.17,137.14,0.69849]
[1767840088554,0.66526381,137.15,137.12,0.69849]
[1767840090838,4.07238942,137.15,137.11,7.29301837]
[1767840091137,0.66526381,137.14,137.11,7.99150837]
[1767840091858,4.07238942,137.14,137.1,7.99226574]
[1767840094555,11.3643143,137.14,137.1,0.69849]
[1767840096854,3.40712561,137.13,137.1,0.69849]
[1767840098269,4.07238942,137.14,137.1,7.99242222]
[1767840098476,0.69506257,137.13,137.1,7.29393222]
[1767840099570,0.69506257,137.13,137.09,7.29424482]
[1767840099867,7.98694293,137.14,137.1,0.69963979]
[1767840100049,11.39406854,137.14,137.1,0.69963979]
[1767840100439,31.54738451,137.16,137.11,0.69963979]
[1767840100440,3.40712561,137.15,137.11,0.69963979]
[1767840100643,0.69506257,137.16,137.11,0.69963979]
[1767840100644,21.30617199,137.16,137.11,0.69963979]
[1767840100844,24.7132976,137.16,137.11,0.69963979]
[1767840101148,4.10218818,137.15,137.11,0.69963979]
[1767840102448,4.10218818,137.13,137.1,0.69963979]
[1767840103664,0.69506257,137.12,137.09,7.29411321]
[1767840104266,0.69506257,137.12,137.09,7.993753]
[1767840106974,11.39409817,137.14,137.09,7.993753]
[1767840107352,0.69506257,137.14,137.1,0.69963979]
[1767840107876,7.29098557,137.16,137.12,0.69963979]
[1767840108050,0.69506257,137.15,137.11,3.40712561]
[1767840108975,0.69506257,137.14,137.1,7.29369716]
[1767840109175,0.69506257,137.14,137.1,10.70082277]
[1767840109776,7.29129295,137.15,137.11,0.69963979]
[1767840110866,0.69506257,137.15,137.11,7.99286055]
[1767840111050,11.39300573,137.16,137.12,0.69963979]
[1767840111657,4.10218818,137.15,137.11,7.29322076]
[1767840111958,4.10218818,137.15,137.11,7.99286055]
[1767840112666,3.33288168,137.15,137.11,7.99286055]
[1767840112880,3.33288168,137.15,137.12,0.69963979]
[1767840114871,3.40712561,137.14,137.11,0.69963979]
[1767840115068,10.91099807,137.15,137.11,0.69963979]
[1767840116478,7.50387246,137.15,137.11,0.69963979]
[1767840116679,10.91099807,137.15,137.11,0.69963979]
[1767840117579,7.50387246,137.15,137.11,0.69963979]
[1767840117776,10.69845369,137.15,137.11,0.69963979]
[1767840118483,7.29132808,137.15,137.11,0.69963979]
[1767840118684,10.69845369,137.15,137.11,0.69963979]
[1767840119157,10.91099807,137.15,137.11,0.69963979]
[1767840119976,7.50387246,137.15,137.11,0.69963979]
[1767840120182,10.91099807,137.15,137.11,0.69963979]
[1767840120682,10.91099807,137.15,137.12,0.69963979]
[1767840120884,10.69845369,137.15,137.12,0.69963979]
[1767840121782,10.91099807,137.15,137.12,0.69963979]
[1767840122885,7.50387246,137.15,137.12,0.69963979]
[1767840123086,4.097363,137.14,137.1,7.29374485]
[1767840123280,4.097363,137.14,137.1,7.97895037]
[1767840123982,4.097363,137.14,137.11,0.68520552]
[1767840124287,3.40712561,137.14,137.11,0.68520552]
[1767840125788,21.31071422,137.15,137.11,0.68520552]
[1767840125981,3.40712561,137.14,137.11,0.68520552]
[1767840127885,21.31071422,137.15,137.11,0.68520552]
[1767840128088,24.71783983,137.15,137.11,0.68520552]
[1767840129086,3.62025177,137.12,137.08,0.68520552]
[1767840130089,24.23323122,137.12,137.08,0.68520552]
[1767840130267,24.20323123,137.12,137.08,0.68520552]
[1767840132795,0.66603647,137.11,137.08,0.68520552]
[1767840132996,4.07316208,137.11,137.08,0.68520552]
[1767840133491,4.06861752,137.09,137.06,0.68614903]
[1767840133690,3.40712561,137.08,137.05,0.68614903]
[1767840134475,3.40712561,137.07,137.04,0.68614903]
[1767840134676,7.51111508,137.08,137.04,0.68614903]
[1767840134883,10.91824069,137.08,137.04,0.68614903]
[1767840135398,0.21607935,137.08,137.04,0.68614903]
[1767840135609,10.91826627,137.08,137.04,0.68614903]
[1767840136301,3.62320496,137.08,137.04,0.68614903]
[1767840137390,10.91822519,137.08,137.04,0.68614903]
[1767840137787,3.40712561,137.07,137.04,0.68614903]
[1767840138091,3.62761454,137.06,137.03,0.1]
[1767840138905,0.6526723,137.05,137.03,0.1]
[1767840139100,4.07316208,137.06,137.03,0.1]
[1767840139491,11.36934545,137.06,137.03,0.1]
[1767840140190,26.21870584,137.05,137.03,0.1]
[1767840140391,3.40712561,137.06,137.01,7.29867718]
[1767840140602,10.70332804,137.06,137.01,7.98482621]
[1767840140906,0.66603647,137.05,137.01,7.98482621]
[1767840142309,0.66603647,137.05,137.01,7.29867718]
[1767840143083,0.56603647,137.04,137.0,7.39914279]
[1767840144304,10.70382722,137.05,137.01,0.68614903]
[1767840144500,10.80282722,137.05,137.01,0.68614903]
[1767840145102,33.40282722,137.05,137.01,0.68614903]
[1767840145409,10.80282722,137.05,137.01,0.68614903]
[1767840145703,3.96849171,137.04,137.0,8.08529182]
[1767840146606,0.5613661,137.04,137.01,0.68614903]
[1767840147512,3.97316208,137.05,137.01,0.68614903]
[1767840148006,13.32,137.05,137.02,0.68614903]
[1767840148593,3.40712561,137.06,137.02,0.68614903]
[1767840148912,16.72712561,137.06,137.02,0.68614903]
[1767840149412,16.82612561,137.06,137.02,0.68614903]
[1767840150015,24.12258625,137.06,137.02,0.68614903]
[1767840150311,0.8,137.05,137.02,0.68614903]
[1767840150805,14.12,137.05,137.02,0.68614903]
[1767840151005,17.52712561,137.05,137.02,0.68614903]
[1767840152518,16.30383168,137.05,137.02,0.68614903]
[1767840152995,23.60052556,137.05,137.02,0.68614903]
[1767840153612,10.28052556,137.05,137.02,0.68614903]
[1767840153804,23.60052556,137.05,137.02,0.68614903]
[1767840156408,14.12,137.05,137.02,0.68614903]
[1767840157521,0.075,137.05,137.03,2.18383168]
[1767840157832,2.89929721,137.07,137.02,7.29820156]
[1767840157998,0.71546553,137.07,137.02,9.48203324]
[1767840158203,0.71546553,137.07,137.03,0.71567355]
[1767840158721,2.89929721,137.07,137.02,0.71567355]
[1767840158899,2.89929721,137.07,137.03,0.71567355]
[1767840159838,10.19502998,137.07,137.03,0.71567355]
[1767840160305,0.71546553,137.06,137.02,9.4819386]
[1767840160621,0.71546553,137.06,137.01,9.48243191]
[1767840161398,0.71546553,137.05,137.01,9.48243191]
[1767840161617,0.71546553,137.05,137.02,0.71567355]
[1767840161823,23.51540563,137.06,137.02,0.71567355]
[1767840162126,0.71546553,137.04,137.01,0.71567355]
[1767840162821,2.89929721,137.04,137.0,0.1]
[1767840163120,2.89929721,137.04,137.0,0.81567355]
[1767840163323,38.85629519,137.06,137.0,0.81567355]
[1767840163324,21.33157395,137.06,137.01,0.71567355]
[1767840163520,23.51540563,137.06,137.01,0.71567355]
[1767840163821,23.51540563,137.06,137.02,0.71567355]
[1767840165128,21.33157395,137.06,137.02,2.89950523]
[1767840165299,21.33157395,137.06,137.02,0.71567355]
[1767840165503,23.51540563,137.06,137.02,0.71567355]
[1767840169634,10.19540563,137.06,137.02,0.71567355]
[1767840170013,23.51540563,137.06,137.02,0.71567355]
[1767840170534,10.19540563,137.06,137.02,0.71567355]
[1767840170727,23.51540563,137.06,137.02,0.71567355]
[1767840171336,7.89661575,137.05,137.02,0.71567355]
[1767840171648,10.79591296,137.05,137.01,0.71567355]
[1767840172610,24.11591296,137.05,137.01,0.71567355]
[1767840172807,23.40044743,137.05,137.01,0.71567355]
[1767840173021,0.71546553,137.04,137.01,0.71567355]
[1767840173741,0.71546553,137.03,137.0,0.81567355]
[1767840174036,2.89929721,137.03,137.0,0.81567355]
[1767840174244,2.89929721,137.03,137.0,0.1]
[1767840174428,0.71546553,137.01,137.0,0.1]
[1767840175138,0.71546553,137.01,136.99,0.1]
[1767840175338,2.82789691,137.0,136.98,0.1]
[1767840175541,2.89929721,137.01,136.98,0.1]
[1767840175721,10.19812038,137.01,136.98,0.1]
[1767840177836,0.5,137.0,136.98,0.1]
[1767840178420,0.5,137.0,136.96,7.40100356]
[1767840179039,0.71546553,136.99,136.96,7.40100356]
[1767840179835,0.71277152,136.99,136.96,7.40100356]
[1767840180144,0.5,137.0,136.97,8.01647981]
[1767840180439,0.5,137.0,136.98,0.71567355]
[1767840181434,23.51719884,137.03,136.99,0.71567355]
[1767840181828,23.51719884,137.03,137.0,0.71567355]
[1767840181829,13.32,137.03,137.0,0.71567355]
[1767840182013,0.6759107,137.06,137.02,0.67750915]
[1767840182218,0.6759107,137.04,136.99,0.14216157]
[1767840182419,2.85974238,137.04,136.99,9.48334292]
[1767840183131,2.85974238,137.04,136.96,20.67882465]
[1767840183132,0.68949119,137.01,136.96,20.67882465]
[1767840183438,0.66268813,137.01,136.96,20.67882465]
[1767840184223,0.66268813,137.01,136.97,7.30075763]
[1767840185024,0.66268813,137.01,136.97,9.48458931]
[1767840185535,0.66268813,137.01,136.97,7.30075763]
[1767840186157,7.96143438,137.01,136.96,9.58500572]
[1767840186444,0.68949119,137.0,136.96,9.58500572]
[1767840188835,0.68949119,137.0,136.96,0.1]
[1767840188836,0.68949119,136.99,136.96,0.1]
[1767840189043,0.6594912,136.99,136.96,0.1]
[1767840191851,16.19332287,137.01,136.96,2.28383168]
[1767840192153,0.68949119,137.02,136.97,2.18383168]
[1767840192387,13.32,137.01,136.97,2.18383168]
[1767840192648,0.68949119,137.02,136.98,2.18383168]
[1767840193648,13.32,137.03,136.99,2.18383168]
[1767840193854,13.32,137.03,137.0,2.18383168]
[1767840194052,13.32,137.03,136.99,2.18383168]
[1767840194661,0.68949119,137.04,137.0,2.18383168]
[1767840194860,14.00949119,137.04,137.0,2.18383168]
[1767840195668,14.00949119,137.04,137.0,9.48303003]
[1767840195862,0.68949119,137.03,137.01,2.18383168]
[1767840196183,0.6594912,137.03,137.01,2.18383168]
[1767840196347,0.6594912,137.03,137.0,7.29919835]
[1767840196546,0.6594912,137.03,137.0,1.45883168]
[1767840197048,0.6594912,137.03,136.99,9.48342597]
[1767840197570,0.6594912,137.03,136.99,10.16444743]
[1767840198972,0.6594912,137.03,136.99,7.98061575]
[1767840199367,0.6594912,137.03,137.0,2.18383168]
[1767840199772,0.68949119,137.05,137.01,2.86485314]
[1767840200067,0.68949119,137.04,137.01,2.86485314]
[1767840200375,0.68949119,137.04,137.01,10.16340239]
[1767840200376,0.6594912,137.04,137.01,10.16340239]
[1767840201569,13.32,137.05,137.02,0.68102146]
[1767840201761,9.47950651,137.07,137.01,10.16340239]
[1767840201970,9.47898787,137.08,137.02,2.86485314]
[1767840202169,0.68949119,137.07,137.03,2.86485314]
[1767840202376,0.68949119,137.08,137.04,2.86485314]
[1767840202670,15.50383168,137.09,137.06,0.68102146]
[1767840202877,22.79845438,137.09,137.06,0.68102146]
[1767840203467,20.6146227,137.09,137.06,0.68102146]
[1767840203670,21.30411389,137.09,137.06,0.68102146]
[1767840204058,14.00949119,137.09,137.06,0.68102146]
[1767840204260,0.68949119,137.09,137.06,0.68102146]
[1767840204462,0.68949119,137.09,137.05,7.296447]
[1767840204659,0.68949119,137.08,137.05,9.48027868]
[1767840205569,0.68949119,137.08,137.05,7.296447]
[1767840205880,0.68949119,137.07,137.03,10.1621699]
[1767840206071,10.16787531,137.09,137.04,0.68102146]
[1767840206270,23.48787531,137.09,137.04,0.68102146]
[1767840206885,10.16787531,137.09,137.04,0.68102146]
[1767840207087,23.48787531,137.09,137.04,0.68102146]
[1767840207580,0.68949119,137.07,137.03,7.97848668]
[1767840207760,0.68949119,137.07,137.02,0.68102146]
[1767840207761,14.00949119,137.06,137.02,0.68102146]
[1767840208179,16.19332287,137.06,137.02,0.68102146]
[1767840208384,0.68949119,137.05,137.02,0.68102146]
[1767840208573,0.68949119,137.05,137.01,0.68102146]
[1767840208574,2.87332287,137.05,137.01,0.68102146]
[1767840210176,0.68949119,137.05,137.01,0.68102146]
[1767840210583,10.16994222,137.05,137.01,0.68102146]
[1767840212092,0.68949119,137.05,137.01,10.16356344]
[1767840212696,0.68949119,137.05,137.01,2.86485314]
[1767840212993,0.68949119,137.05,137.01,0.68102146]
[1767840214093,7.98614856,137.05,137.01,0.68102146]
[1767840214278,10.16998024,137.05,137.01,0.68102146]
[1767840214478,11.39843618,137.05,137.01,0.68102146]
[1767840214986,7.98614856,137.05,137.01,0.68102146]
[1767840215766,11.39843618,137.05,137.01,0.68102146]
[1767840217295,0.69760345,137.04,137.01,0.68102146]
[1767840219087,7.29665737,137.05,137.01,0.68102146]
[1767840219280,7.99426082,137.05,137.01,0.68102146]
[1767840220293,0.69760345,137.05,137.01,7.97974886]
[1767840220600,11.40652025,137.05,137.01,0.68102146]
[1767840221097,11.40652025,137.05,137.01,7.97973644]
[1767840221698,0.69760345,137.1,137.05,0.67463066]
[1767840221873,0.69760345,137.1,137.05,4.08691828]
[1767840222078,0.69760345,137.1,137.06,0.67463066]
[1767840222493,0.69760345,137.09,137.05,0.67463066]
[1767840222675,0.69760345,137.09,137.05,7.97096612]
[1767840224803,0.69760345,137.09,137.05,11.38325374]
[1767840226800,0.69760345,137.08,137.04,7.29692307]
[1767840227192,14.01760345,137.07,137.04,7.29692307]
[1767840227583,162.00470308,137.15,137.07,0.67463066]
[1767840227584,0.69760345,137.13,137.07,0.67463066]
[1767840227900,0.69760345,137.13,137.08,3.41228762]
[1767840228484,0.69760345,137.11,137.08,3.41228762]
[1767840229183,0.69760345,137.11,137.07,11.38202945]
[1767840229379,0.69760345,137.12,137.08,0.67463066]
[1767840229596,13.32,137.13,137.09,0.67463066]
[1767840229922,21.30997509,137.13,137.09,0.67463066]
[1767840230503,0.69760345,137.12,137.08,4.08691828]
[1767840231009,0.69760345,137.12,137.08,0.67463066]
[1767840231308,0.2,137.15,137.11,3.41228762]
[1767840231505,0.2,137.15,137.12,3.41228762]
[1767840232407,0.2,137.15,137.13,10.70463794]
[1767840232791,0.2,137.15,137.13,3.41228762]
[1767840232999,0.2,137.15,137.12,7.32268743]
[1767840233000,0.2,137.15,137.12,10.73497505]
[1767840234501,0.2,137.15,137.12,10.70497509]
[1767840236086,0.69760345,137.16,137.12,10.70497509]
[1767840236087,1e-08,137.19,137.14,3.41228762]
[1767840236291,0.69760345,137.22,137.18,3.41228762]
[1767840236595,0.69760345,137.22,137.15,0.28432314]
[1767840236596,0.69760345,137.22,137.19,3.41228762]
[1767840236800,7.28704679,137.23,137.18,10.70185861]
[1767840237099,0.69760345,137.21,137.17,10.70231785]
[1767840238513,0.69760345,137.21,137.17,10.70239392]
[1767840241502,0.69760345,137.19,137.16,7.29075532]
[1767840241714,20.60770359,137.22,137.18,1.96228762]
[1767840241909,20.60770359,137.22,137.16,7.29075532]
[1767840242114,20.60770359,137.22,137.17,3.41228762]
[1767840242609,3.41228762,137.19,137.11,0.7293414]
[1767840242812,3.41228762,137.17,137.12,0.66659611]
[1767840243117,16.73228762,137.17,137.12,7.95940977]
[1767840243413,3.41228762,137.17,137.12,0.66659611]
[1767840243614,16.73228762,137.17,137.13,0.66659611]
[1767840243795,13.32,137.17,137.13,0.66659611]
[1767840243997,16.73228762,137.17,137.13,0.66659611]
[1767840244938,24.02265629,137.17,137.13,0.66659611]
[1767840245712,3.41228762,137.16,137.11,0.66659611]
[1767840246095,20.61036867,137.17,137.12,0.66659611]
[1767840246613,0.65694295,137.25,137.21,0.66659611]
[1767840247600,7.94298111,137.25,137.21,0.66659611]
[1767840247919,0.65694295,137.25,137.21,0.66659611]
[1767840248299,7.9429537,137.25,137.21,0.66659611]
[1767840249830,0.2,137.29,137.24,3.41228762]
[1767840250018,3.41228762,137.32,137.25,4.07888373]
[1767840250225,3.41228762,137.31,137.25,4.07888373]
[1767840250527,0.65694295,137.3,137.25,4.01888373]
[1767840251019,0.65694295,137.3,137.26,3.41228762]
[1767840251225,0.65694295,137.28,137.23,3.69661076]
[1767840251407,0.65694295,137.28,137.24,0.14216157]
[1767840252108,0.65694295,137.28,137.24,7.42839376]
[1767840252524,0.65694295,137.28,137.24,8.09498987]
[1767840252723,0.65694295,137.28,137.24,11.50727749]
[1767840252933,13.32,137.29,137.24,11.50727749]
[1767840253109,24.67322411,137.29,137.24,8.09498987]
[1767840253312,0.65694295,137.26,137.21,3.55444919]
[1767840253518,0.65694295,137.26,137.22,0.14216157]
[1767840253725,36.41080321,137.33,137.22,0.14216157]
[1767840253726,22.06190562,137.37,137.24,0.66659611]
[1767840254030,0.65694295,137.35,137.3,4.2210453]
[1767840254219,0.65694295,137.35,137.3,0.80875768]
[1767840254427,0.65694295,137.35,137.3,4.2210453]
[1767840254625,13.5,137.34,137.3,0.80875768]
[1767840256501,20.78122414,137.34,137.3,0.66659611]
[1767840256810,21.43816709,137.34,137.3,0.66659611]
[1767840257733,0.06305705,137.37,137.35,0.42648471]
[1767840257914,0.2,137.4,137.37,0.14216157]
[1767840258118,0.65694295,137.39,137.37,0.14216157]
[1767840258908,0.65694295,137.39,137.35,7.2806484]
[1767840259135,0.65694295,137.39,137.36,3.41228762]
[1767840259537,0.2,137.4,137.36,3.41228762]
[1767840259834,7.47818785,137.4,137.36,3.41228762]
[1767840260030,7.47818785,137.4,137.36,0.14216157]
[1767840260237,7.47818785,137.4,137.36,3.55444919]
[1767840260533,0.2,137.43,137.4,0.14216157]
[1767840260734,0.85694295,137.46,137.42,9.45521043]
[1767840260924,0.65694295,137.45,137.43,9.45521043]
[1767840261327,0.85694295,137.46,137.42,9.45521043]
[1767840261824,8.13180528,137.46,137.42,9.45521043]
[1767840262023,13.95694295,137.45,137.41,0.14216157]
[1767840262233,13.95694295,137.45,137.41,9.45521043]
[1767840262424,13.95694295,137.45,137.4,0.14216157]
[1767840262629,0.65694295,137.44,137.4,9.597372]
[1767840263135,0.65694295,137.44,137.4,9.45521043]
[1767840264040,0.65694295,137.44,137.41,9.45521043]
[1767840264223,0.2,137.47,137.44,0.14216157]
[1767840264414,0.2,137.47,137.46,9.45521043]
[1767840264617,0.2,137.47,137.45,9.45521043]
[1767840265034,8.13137427,137.47,137.42,0.42648471]
[1767840265239,8.13137427,137.47,137.43,9.45521043]
[1767840265417,8.13137427,137.47,137.42,9.597372]
[1767840265620,8.13137427,137.47,137.43,9.45521043]
[1767840265949,8.13137427,137.47,137.42,0.14216157]
[1767840265950,0.65694295,137.46,137.42,9.45521043]
[1767840266239,13.3,137.45,137.42,9.45521043]
[1767840268046,13.3,137.45,137.43,9.45521043]
[1767840269128,0.65694295,137.43,137.38,9.45521043]
[1767840269448,0.2,137.47,137.42,9.45521043]
[1767840269646,0.2,137.47,137.45,9.45521043]
[1767840270147,0.2,137.47,137.46,9.45521043]